bitfinex/quotes_ETHUSD_20250115
["timestamp","ask_amount","ask_price","bid_price","bid_amount"]
[1736974859453,0.60109,3436.6,3435.8,2.91052]
[1736974860164,0.55,3436.5,3435.5,2.9107]
[1736974860324,0.60109,3436.6,3435.6,0.02910486]
[1736974860534,0.60109,3436.6,3435.4,3.57637071]
[1736974860877,0.8023,3436.7,3435.8,2.91053]
[1736974861031,2.299,3436.8,3436.4,2.91001]
[1736974861032,0.201,3436.6,3436.4,2.91001]
[1736974861236,0.201,3436.6,3435.9,3.0]
[1736974861417,0.201,3436.6,3436.1,2.91022]
[1736974861620,0.201,3436.6,3436.3,3.0]
[1736974862642,0.201,3436.6,3436.0,2.91033]
[1736974863158,0.201,3436.6,3436.1,5.91024]
[1736974863971,0.201,3436.6,3435.9,3.59327081]
[1736974864297,0.201,3436.6,3435.9,5.19864689]
[1736974864764,0.201,3436.6,3436.3,3.0]
[1736974865929,2.096,3436.8,3435.9,8.10903689]
[1736974866123,0.201,3436.7,3436.6,5.90985]
[1736974867424,0.201,3436.7,3436.6,6.500835]
[1736974867644,2.096,3436.8,3436.7,5.90976]
[1736974867844,2.297,3436.8,3436.7,5.90976]
[1736974870386,2.096,3436.8,3436.7,5.90976]
[1736974870551,2.297,3436.8,3436.6,3.005]
[1736974870747,2.297,3436.8,3436.7,2.90976]
[1736974873141,2.297,3436.8,3436.6,11.765]
[1736974875382,2.909,3437.6,3436.6,5.91477]
[1736974875580,1.414375,3439.1,3436.9,2.90959]
[1736974875581,0.201,3437.5,3436.9,2.90959]
[1736974875780,0.201,3437.4,3437.1,2.90942]
[1736974875985,0.201,3437.3,3437.2,5.90931]
[1736974876385,0.201,3437.3,3437.2,3.0]
[1736974879188,0.201,3437.3,3437.2,5.90934]
[1736974879905,0.7972,3438.0,3437.4,2.90916]
[1736974880214,0.201,3437.9,3437.3,3.0]
[1736974880519,0.201,3437.9,3437.3,5.90923]
[1736974880666,0.201,3437.9,3437.2,8.76]
[1736974881013,0.7972,3437.7,3436.9,2.90958]
[1736974881175,0.7972,3437.7,3436.8,8.76]
[1736974881176,0.445704,3437.6,3436.8,8.76]
[1736974881502,3.354704,3437.6,3436.8,8.76]
[1736974881704,0.445704,3437.6,3436.8,11.66966]
[1736974882911,0.445704,3437.6,3436.8,11.67556]
[1736974883089,0.201,3437.5,3436.8,2.91556]
[1736974884006,3.32104143,3437.3,3436.8,0.0059]
[1736974884214,0.7972,3437.1,3436.8,0.0059]
[1736974885488,3.70662,3437.1,3436.8,0.0059]
[1736974886500,0.7972,3437.1,3436.8,0.0059]
[1736974888112,4.25679,3436.9,3436.8,0.0059]
[1736974888300,7.57783143,3436.9,3436.8,0.0059]
[1736974888515,8.62655657,3436.9,3436.8,0.0059]
[1736974889576,8.62655657,3436.9,3436.8,0.0109]
[1736974890923,0.7972,3436.9,3436.8,0.0109]
[1736974891106,0.9912,3436.9,3436.8,0.0109]
[1736974891316,0.194,3436.9,3436.8,0.0109]
[1736974897441,0.7972,3437.4,3436.8,0.0109]
[1736974897666,0.194,3437.3,3436.8,0.0109]
[1736974898255,0.584022,3437.3,3436.8,0.0109]
[1736974901485,0.194,3437.3,3436.8,0.0109]
[1736974903595,0.194,3437.3,3436.8,2.92055]
[1736974903786,0.194,3437.3,3436.8,0.0109]
[1736974903960,0.7709,3437.7,3436.9,3.73759]
[1736974904460,0.194,3437.6,3436.9,3.73759]
[1736974904869,0.7709,3437.7,3437.0,2.9095]
[1736974905189,0.194,3437.6,3437.0,2.9095]
[1736974905403,0.164,3437.6,3437.0,2.9095]
[1736974905995,0.194,3437.5,3437.2,2.9093]
[1736974907500,2.095,3438.0,3437.0,1.25084]
[1736974907682,0.194,3437.9,3437.6,3.73699]
[1736974907867,0.194,3437.8,3437.6,3.73699]
[1736974909201,0.194,3437.8,3437.6,0.828]
[1736974909382,0.194,3437.8,3437.7,2.90892]
[1736974910196,0.194,3437.8,3437.7,5.90892]
[1736974910793,2.095,3438.0,3437.7,5.90892]
[1736974910794,2.095,3438.0,3437.8,5.90883]
[1736974911096,0.194,3437.9,3437.8,5.90883]
[1736974911461,0.194,3437.9,3437.8,3.0]
[1736974911662,2.095,3438.0,3437.8,2.90883]
[1736974911877,0.194,3437.9,3437.8,2.90883]
[1736974913814,2.095,3438.0,3437.8,2.90883]
[1736974913986,2.095,3438.0,3437.9,5.90875]
[1736974914186,2.289,3438.0,3437.9,5.90875]
[1736974915994,2.095,3438.0,3437.9,5.90875]
[1736974916299,2.289,3438.0,3437.9,5.90875]
[1736974917218,0.194,3438.1,3438.0,6.68736]
[1736974917409,0.194,3438.1,3438.0,16.83448259]
[1736974917738,0.8326,3439.4,3438.3,8.76]
[1736974917913,0.8326,3439.4,3438.7,2.908]
[1736974917914,0.194,3439.3,3438.7,2.908]
[1736974919119,0.194,3439.3,3438.7,2.90802]
[1736974919443,0.194,3439.3,3438.7,2.90807]
[1736974919809,0.194,3439.3,3438.8,2.90797]
[1736974920012,0.194,3439.3,3438.9,2.90789]
[1736974920792,0.194,3439.3,3439.0,2.90781]
[1736974921026,0.194,3439.3,3439.0,3.0]
[1736974921329,0.194,3439.2,3439.0,3.0]
[1736974921492,0.194,3439.2,3439.0,2.90782]
[1736974921694,0.194,3439.1,3439.0,2.90782]
[1736974922688,0.194,3439.1,3439.0,3.498602]
[1736974922925,0.7941,3439.8,3439.0,0.596682]
[1736974923092,0.194,3439.7,3439.2,3.0]
[1736974923713,0.194,3439.6,3439.2,3.0]
[1736974924334,0.194,3439.5,3439.1,3.78467575]
[1736974924535,0.194,3439.5,3439.1,3.0]
[1736974924731,0.7941,3439.4,3439.0,0.0059]
[1736974924921,0.194,3439.5,3439.0,5.91369]
[1736974925437,0.194,3439.5,3439.0,0.0059]
[1736974926225,0.194,3439.5,3439.0,2.91364]
[1736974928017,0.194,3439.5,3439.0,0.0059]
[1736974928639,0.194,3439.4,3439.0,0.0059]
[1736974929813,0.194,3439.4,3439.0,0.0109]
[1736974930834,0.583542,3439.4,3439.0,0.0109]
[1736974931236,0.389542,3439.4,3439.0,0.0109]
[1736974931413,0.194,3439.3,3439.0,0.0109]
[1736974932423,0.194,3439.3,3439.2,3.0]
[1736974932740,0.194,3439.3,3439.0,0.0109]
[1736974933399,2.90773,3439.1,3439.0,0.0109]
[1736974933605,4.65959696,3439.1,3439.0,0.0109]
[1736974936024,0.7941,3439.1,3439.0,0.0109]
[1736974936755,3.70183,3439.1,3439.0,0.0109]
[1736974937339,4.25183,3439.1,3439.0,0.0109]
[1736974942233,4.44583,3439.1,3439.0,0.0109]
[1736974944714,2.90785,3439.0,3438.1,2.823969]
[1736974944907,0.444595,3438.9,3438.1,2.823969]
[1736974945443,0.444595,3438.9,3437.9,14.66873]
[1736974945745,0.444595,3438.9,3438.0,2.90865]
[1736974946134,3.352555,3438.9,3438.0,2.90865]
[1736974946337,2.90807,3438.7,3437.9,8.76]
[1736974946538,0.7516,3438.3,3437.4,0.8252]
[1736974946848,2.90856,3438.2,3437.4,0.8252]
[1736974947050,0.194,3438.1,3437.4,0.8252]
[1736974948752,2.96832961,3438.1,3437.1,9.5546]
[1736974949149,5.87693961,3438.1,3437.1,12.46402]
[1736974949458,3.76546396,3438.1,3437.2,2.90931]
[1736974950367,3.76546396,3438.1,3437.1,9.5546]
[1736974950368,2.90867,3438.0,3437.1,9.5546]
[1736974950728,2.90867,3438.0,3437.1,0.7946]
[1736974950935,2.90867,3438.0,3437.1,6.704]
[1736974952072,0.85685396,3438.1,3437.2,2.90932]
[1736974952272,0.4516954,3438.0,3437.3,2.90924]
[1736974953881,3.3603854,3438.0,3437.1,3.70402]
[1736974954053,0.4516954,3438.0,3437.1,3.70402]
[1736974954569,0.4516954,3438.0,3437.1,0.7946]
[1736974954749,0.4516954,3438.0,3437.2,2.9093]
[1736974954952,0.4516954,3438.0,3437.5,2.90907]
[1736974955135,0.194,3438.1,3437.5,2.90907]
[1736974957372,0.7516,3438.3,3437.5,2.90907]
[1736974957544,0.194,3438.0,3437.5,2.90907]
[1736974958760,0.194,3438.0,3437.6,3.0]
[1736974958951,0.194,3438.0,3437.8,2.90879]
[1736974959269,2.094,3438.6,3437.8,2.90879]
[1736974959480,0.194,3437.9,3437.8,5.90879]
[1736974961092,2.094,3438.6,3437.9,2.90867]
[1736974961245,2.094,3438.6,3437.8,3.0]
[1736974961571,0.194,3438.5,3437.8,5.90877]
[1736974961771,0.194,3438.5,3437.9,2.90873]
[1736974961999,0.7942,3438.7,3437.9,3.671483]
[1736974962173,0.7942,3439.0,3438.2,2.90849]
[1736974962376,0.194,3438.6,3438.3,3.0]
[1736974962685,0.194,3438.5,3438.4,5.90831]
[1736974963555,0.194,3438.5,3438.4,3.0]
[1736974963894,0.194,3438.5,3438.0,2.90862]
[1736974964106,2.77432961,3438.3,3437.9,8.76]
[1736974964381,0.37625296,3438.2,3437.9,8.76]
[1736974965745,0.37625296,3438.2,3437.5,3.0]
[1736974969688,0.37625296,3438.2,3437.3,3.8061]
[1736974969884,0.37625296,3438.2,3437.3,6.71535]
[1736974970182,2.77432961,3438.0,3437.3,3.0]
[1736974970390,0.39658826,3437.9,3437.3,3.0]
[1736974972182,0.39658826,3437.9,3437.0,3.73696]
[1736974972183,0.8153,3438.1,3437.7,2.90883]
[1736974972387,0.194,3438.0,3437.7,2.90883]
[1736974973287,0.194,3438.0,3437.8,3.0]
[1736974975593,0.194,3438.0,3437.6,3.0]
[1736974975801,0.194,3438.0,3437.6,2.909]
[1736974976482,0.194,3438.0,3437.4,2.9091]
[1736974976682,0.194,3438.0,3437.6,3.0]
[1736974977294,0.194,3438.0,3437.3,0.8275]
[1736974977591,0.8153,3437.9,3437.2,2.90927]
[1736974977798,1.207081,3437.9,3437.2,3.0]
[1736974978379,1.207081,3437.9,3437.0,0.8275]
[1736974978583,1.207081,3437.9,3437.1,2.9094]
[1736974979263,1.207081,3437.9,3437.2,3.0]
[1736974982070,0.194,3438.0,3437.0,3.8275]
[1736974982272,0.8153,3438.2,3437.1,0.8275]
[1736974982463,0.194,3437.9,3437.8,3.0]
[1736974983397,0.194,3437.9,3437.6,3.0]
[1736974984696,0.8153,3437.8,3437.4,2.90916]
[1736974986619,0.8153,3437.8,3437.3,3.0]
[1736974986815,0.8153,3437.8,3437.0,0.8275]
[1736974986816,0.8153,3437.8,3437.0,3.0]
[1736974987205,2.90893,3437.7,3436.9,4.2186074]
[1736974987529,0.391823,3437.6,3436.9,7.1281774]
[1736974987683,0.391823,3437.6,3436.9,4.2186074]
[1736974988018,0.391823,3437.6,3437.0,2.90944]
[1736974989301,0.8153,3437.8,3437.1,2.90941]
[1736974990233,0.194,3437.7,3436.9,3.0]
[1736974990391,0.194,3437.7,3437.3,2.90919]
[1736974990811,0.8153,3437.6,3436.9,4.2186074]
[1736974991618,0.8153,3437.6,3436.9,3.0]
[1736974991822,0.391818,3437.5,3436.9,3.0]
[1736974993735,3.72462,3437.3,3436.9,3.0]
[1736974994032,2.90961,3436.9,3436.5,1.2186074]
[1736974994244,2.90961,3436.9,3436.4,1.2186074]
[1736974994416,0.55,3436.8,3436.4,1.2186074]
[1736974994613,2.90993,3436.5,3436.4,1.2186074]
[1736974994810,3.72523,3436.5,3436.4,1.2186074]
[1736974995012,3.72523,3436.5,3435.9,1.2186074]
[1736974995333,2.91007,3436.4,3435.9,1.2186074]
[1736974995837,2.91007,3436.4,3435.5,2.91078]
[1736974996043,0.194,3436.3,3435.5,3.0]
[1736974996216,0.194,3436.3,3435.6,2.91063]
[1736974998437,0.8153,3437.3,3436.3,2.91008]
[1736974998734,0.194,3437.2,3436.4,3.0]
[1736974998923,0.39185,3437.1,3436.4,2.91]
[1736974999304,0.194,3437.2,3436.6,2.90977]
[1736974999496,0.194,3437.2,3436.2,0.8275]
[1736974999738,0.194,3437.2,3436.2,3.73762]
[1736974999940,0.194,3437.2,3436.5,3.0]
[1736975000707,0.194,3437.2,3436.6,2.90985]
[1736975001304,0.194,3437.2,3436.2,6.73764]
[1736975001499,0.194,3437.2,3436.5,2.90991]
[1736975002707,0.194,3437.2,3436.2,3.8275]
[1736975003002,0.194,3437.2,3436.3,2.91008]
[1736975003329,0.8276,3437.0,3436.5,3.0]
[1736975004335,0.8276,3437.0,3436.5,2.90986]
[1736975006104,0.8276,3437.0,3436.8,2.90965]
[1736975006105,0.144,3436.9,3436.8,2.90965]
[1736975006306,0.12630206,3436.9,3436.8,2.90965]
[1736975008340,3.0,3438.4,3436.9,3.0]
[1736975008341,0.8276,3438.1,3436.9,3.0]
[1736975008515,0.55419296,3438.0,3437.1,2.9094]
[1736975009147,0.194,3437.9,3437.2,2.90933]
[1736975010835,0.8276,3438.1,3436.9,11.7890927]
[1736975011150,0.194,3437.8,3437.0,9.5164]
[1736975011344,0.8276,3438.1,3437.3,3.0]
[1736975011345,0.194,3437.7,3437.3,3.0]
[1736975011524,0.194,3437.7,3437.6,2.909]
[1736975012453,0.194,3437.7,3437.4,0.890931]
[1736975012653,0.194,3437.7,3437.6,2.909]
[1736975013115,0.8276,3438.1,3437.9,2.90868]
[1736975013313,2.9226,3438.5,3437.7,12.5164]
[1736975013518,2.9226,3438.5,3438.2,2.90849]
[1736975013519,0.194,3438.4,3438.2,2.90849]
[1736975014772,0.194,3438.4,3438.1,3.0]
[1736975015721,2.9226,3438.5,3438.1,3.0]
[1736975015917,0.194,3438.4,3438.1,5.90858]
[1736975016455,0.50566,3438.4,3437.8,3.0]
[1736975016657,0.7886,3438.3,3437.2,1.21585821]
[1736975016867,0.7886,3438.3,3437.4,2.90909]
[1736975017027,0.7886,3438.3,3437.1,13.00403789]
[1736975017234,0.7886,3438.3,3437.2,3.0]
[1736975017426,0.338926,3438.2,3437.2,3.0]
[1736975017640,0.338926,3438.2,3437.5,3.0]
[1736975019056,0.338926,3438.2,3437.6,2.90898]
[1736975021430,0.338926,3438.2,3437.3,2.90918]
[1736975022567,0.338926,3438.2,3437.4,2.90909]
[1736975022784,0.4541526,3438.1,3437.4,2.90909]
[1736975023241,0.4541526,3438.1,3437.5,2.90905]
[1736975023428,0.338926,3438.2,3437.5,2.90905]
[1736975024846,0.194,3438.1,3437.5,2.90905]
[1736975027368,0.7658,3438.0,3437.2,8.76]
[1736975027569,0.7658,3438.0,3437.3,2.90925]
[1736975027875,0.7658,3438.0,3437.0,2.90945]
[1736975028063,0.7658,3437.8,3437.0,2.90945]
[1736975028259,0.367456,3437.7,3437.0,2.90945]
[1736975029981,0.367456,3437.7,3436.8,8.76]
[1736975029982,0.7658,3437.8,3436.9,3.0]
[1736975030276,0.7658,3437.8,3436.8,11.66965]
[1736975030277,0.194,3437.7,3437.5,2.909]
[1736975031878,0.194,3437.7,3437.2,8.76]
[1736975032856,0.194,3437.7,3437.2,11.66931]
[1736975033881,0.194,3437.7,3437.2,8.76]
[1736975034073,0.194,3437.7,3437.3,2.90924]
[1736975034549,0.194,3437.7,3437.4,2.90916]
[1736975035060,0.194,3437.7,3437.3,2.90924]
[1736975035556,0.8265,3438.3,3437.2,8.76]
[1736975035777,0.194,3438.2,3437.3,0.7898]
[1736975036148,0.194,3438.2,3437.6,2.90897]
[1736975038349,0.194,3438.2,3437.3,0.7898]
[1736975038550,0.194,3438.2,3437.7,2.90884]
[1736975040284,0.194,3438.2,3437.5,5.90905]
[1736975040483,0.50555,3438.2,3437.5,5.90905]
[1736975040693,0.50555,3438.2,3437.5,3.0]
[1736975041052,0.194,3438.2,3437.7,2.90892]
[1736975041247,0.8265,3438.3,3437.9,2.90868]
[1736975041460,2.095,3438.5,3438.1,2.90858]
[1736975041685,0.194,3438.4,3438.1,2.90858]
[1736975043285,0.194,3438.4,3437.7,2.90892]
[1736975043489,0.194,3438.4,3437.7,4.746613]
[1736975044002,0.194,3438.4,3437.9,2.90868]
[1736975044661,0.194,3438.4,3438.0,2.90864]
[1736975046289,0.194,3438.4,3437.9,2.90873]
[1736975048377,0.194,3438.4,3437.8,8.76]
[1736975048578,0.7654,3438.2,3437.8,8.76]
[1736975052605,0.7654,3438.2,3437.5,2.90907]
[1736975054083,0.7654,3438.2,3437.3,0.7984]
[1736975054084,0.7654,3438.2,3437.3,5.90925]
[1736975054301,0.7654,3438.1,3437.3,2.90925]
[1736975054805,2.90867,3438.0,3437.2,8.76]
[1736975054976,1.056267,3437.9,3437.2,8.76]
[1736975057520,0.7654,3437.9,3437.3,2.90926]
[1736975057716,0.7654,3437.9,3437.2,11.66931]
[1736975057717,0.194,3437.8,3437.5,2.90904]
[1736975058719,0.194,3437.8,3437.2,2.90931]
[1736975058906,0.194,3437.8,3437.6,2.90897]
[1736975059117,0.194,3437.8,3437.6,2.90893]
[1736975061385,0.7681,3438.1,3437.6,2.90893]
[1736975061598,0.194,3438.0,3437.6,2.90893]
[1736975062419,0.7681,3438.4,3437.6,0.371213]
[1736975062621,2.095,3438.5,3438.0,2.90858]
[1736975062807,0.7681,3438.2,3437.5,3.0]
[1736975062998,0.7681,3438.2,3437.4,11.6691]
[1736975063415,0.7681,3438.2,3437.5,3.0]
[1736975063621,0.7681,3438.2,3437.5,5.90908]
[1736975063937,4.273192,3438.2,3437.5,3.0]
[1736975064581,0.7681,3437.9,3437.5,3.0]
[1736975066056,0.7681,3437.9,3436.9,4.12541821]
[1736975066057,2.90884,3437.8,3436.9,4.12541821]
[1736975066558,0.7681,3437.9,3436.9,4.12541821]
[1736975066839,0.7681,3437.9,3437.0,3.0]
[1736975067049,0.64511196,3437.8,3437.0,3.0]
[1736975067246,0.64511196,3437.8,3437.0,2.90944]
[1736975068260,0.64511196,3437.8,3436.8,3.57284665]
[1736975068480,0.7681,3437.9,3437.2,3.0]
[1736975068972,2.77432961,3437.8,3436.9,2.90956]
[1736975069172,2.77432961,3437.8,3436.8,1.21585821]
[1736975069173,2.90899,3437.7,3436.8,1.21585821]
[1736975069314,1.33643196,3437.6,3436.9,2.90959]
[1736975070014,1.33643196,3437.6,3436.8,1.21585821]
[1736975070221,1.33643196,3437.6,3436.9,3.0]
[1736975070422,2.90928,3437.3,3436.7,3.0]
[1736975070633,0.7681,3437.1,3436.6,1.21585821]
[1736975070835,0.193,3437.2,3436.6,1.21585821]
[1736975070836,3.67778,3436.8,3436.6,1.21585821]
[1736975071137,2.96732961,3437.2,3436.3,2.43171642]
[1736975071138,2.90985,3436.6,3436.5,1.21585821]
[1736975071354,3.67795,3436.6,3436.5,1.21585821]
[1736975071669,4.32317796,3436.6,3435.6,0.57028953]
[1736975071970,2.90995,3436.5,3435.4,9.97585821]
[1736975072130,2.90995,3436.5,3435.5,3.0]
[1736975072333,2.91002,3436.4,3435.3,13.68998821]
[1736975073154,2.91002,3436.4,3435.4,5.91086]
[1736975074460,2.77432961,3436.3,3435.2,2.91102]
[1736975074632,2.77432961,3436.3,3435.0,9.5632]
[1736975074633,3.46039,3436.0,3435.1,3.0]
[1736975074833,0.8021,3435.9,3435.1,3.0]
[1736975075562,1.247649,3435.9,3435.0,2.91117]
[1736975075758,1.247649,3435.9,3434.8,2.91134]
[1736975076358,1.247649,3435.9,3435.0,3.0]
[1736975077074,1.247649,3435.9,3434.7,1.37446251]
[1736975077272,0.193,3435.8,3434.7,1.37446251]
[1736975077474,0.193,3435.8,3435.5,2.91077]
[1736975079881,0.8021,3435.9,3435.5,2.91077]
[1736975080177,0.193,3435.7,3435.5,2.91077]
[1736975080722,0.193,3435.7,3434.8,8.76]
[1736975080723,0.193,3435.7,3435.2,2.91096]
[1736975080968,0.193,3435.7,3435.2,3.202056]
[1736975081547,0.193,3435.7,3435.4,2.91085]
[1736975082126,0.193,3435.7,3435.2,3.202096]
[1736975083693,0.193,3435.7,3435.0,3.0]
[1736975083896,0.193,3435.7,3435.0,5.91118]
[1736975084125,0.8021,3435.6,3434.8,8.76]
[1736975084434,0.55,3435.3,3434.4,2.9117]
[1736975084582,0.8021,3435.2,3434.4,2.9117]
[1736975084785,1.50583496,3435.2,3434.4,2.9117]
[1736975085415,1.50583496,3435.2,3434.1,4.03416851]
[1736975085416,2.9113,3434.9,3434.1,4.03416851]
[1736975085601,0.8021,3434.8,3434.1,4.03416851]
[1736975085806,0.194,3434.7,3434.1,4.03416851]
[1736975086392,0.8021,3434.6,3434.1,4.03416851]
[1736975086717,0.8021,3434.4,3434.1,4.03416851]
[1736975087286,0.55,3434.3,3434.1,4.03416851]
[1736975088108,3.4618,3434.3,3434.1,4.03416851]
[1736975088309,1.3521,3434.2,3434.1,4.03416851]
[1736975089631,7.03830961,3434.2,3434.1,4.03416851]
[1736975089842,7.77984487,3434.2,3434.1,4.03416851]
[1736975090431,7.79864487,3434.2,3434.1,4.03416851]
[1736975096647,5.02431526,3434.2,3434.1,4.03416851]
[1736975100429,0.37704296,3434.5,3434.1,4.03416851]
[1736975100430,0.8209,3434.5,3434.1,4.03416851]
[1736975100664,0.193,3434.4,3434.1,4.78916851]
[1736975100965,0.8209,3434.8,3434.1,4.78916851]
[1736975100966,0.193,3434.3,3434.1,4.78916851]
[1736975101124,0.8209,3434.8,3434.1,4.78916851]
[1736975101328,0.193,3434.7,3434.1,4.78916851]
[1736975101962,3.497009,3434.7,3434.1,4.78916851]
[1736975102150,3.497009,3434.7,3434.1,4.03416851]
[1736975103660,0.193,3434.6,3434.1,4.03416851]
[1736975103872,0.8209,3434.5,3434.1,4.03416851]
[1736975104358,0.193,3434.6,3434.1,4.03416851]
[1736975105377,0.193,3434.6,3434.1,4.78916851]
[1736975105768,0.193,3434.5,3434.1,4.78916851]
[1736975106543,0.193,3434.5,3434.1,5.84747251]
[1736975107472,0.193,3434.4,3434.1,5.84747251]
[1736975110049,0.193,3434.4,3434.1,6.50771976]
[1736975110248,0.193,3434.4,3434.1,2.93550251]
[1736975116269,4.28278,3434.2,3434.1,2.93550251]
[1736975120292,0.193,3434.2,3434.1,2.93550251]
[1736975120595,4.44958,3434.2,3434.1,2.93061472]
[1736975120895,5.51813796,3434.2,3434.1,2.93061472]
[1736975123175,8.29246757,3434.2,3434.1,2.93061472]
[1736975125200,5.51813796,3434.2,3434.1,2.93061472]
[1736975125566,11.29246757,3434.2,3434.1,2.93061472]
[1736975128906,11.29246757,3434.2,3434.1,1.50481362]
[1736975129202,11.29246757,3434.2,3432.7,0.7592]
[1736975129203,2.91266,3433.3,3432.7,0.7592]
[1736975129502,0.193,3433.2,3432.7,0.7592]
[1736975132700,0.193,3433.2,3432.8,0.07770407]
[1736975133101,0.193,3433.2,3432.7,0.7592]
[1736975133305,0.193,3433.2,3432.9,0.07765053]
[1736975133472,0.193,3433.2,3432.8,0.07770407]
[1736975133871,0.193,3433.2,3432.7,0.7592]
[1736975134170,0.193,3433.2,3432.8,0.07770407]
[1736975134495,2.91257,3433.4,3433.2,0.905954]
[1736975134683,0.76168996,3433.3,3433.2,0.905954]
[1736975136282,0.193,3433.3,3433.2,0.905954]
[1736975138405,3.46229,3433.8,3433.2,0.905954]
[1736975138605,1.06855796,3434.2,3433.3,0.7831]
[1736975138606,0.193,3433.7,3433.3,0.7831]
[1736975140808,0.193,3433.6,3433.3,0.81222529]
[1736975141022,0.193,3433.6,3433.3,0.7831]
[1736975141327,0.193,3433.6,3433.3,3.69574]
[1736975142037,0.193,3433.6,3433.3,0.7831]
[1736975145108,3.10541,3433.6,3433.2,0.905954]
[1736975145390,0.310541,3433.5,3433.3,0.0783773]
[1736975145625,0.310541,3433.5,3433.2,0.905954]
[1736975145824,0.310541,3433.5,3433.3,0.0783773]
[1736975146026,0.310541,3433.5,3433.2,0.905954]
[1736975146326,0.310541,3433.5,3433.3,0.0783773]
[1736975146530,0.193,3433.6,3433.3,0.0783773]
[1736975146735,0.193,3433.6,3433.2,0.905954]
[1736975146920,0.193,3433.6,3433.4,0.07832378]
[1736975147122,0.193,3433.6,3433.3,0.07841636]
[1736975147437,0.193,3433.6,3433.4,0.07836718]
[1736975147595,0.193,3433.6,3433.2,0.905954]
[1736975147793,0.193,3433.6,3433.3,0.0784207]
[1736975147997,0.193,3433.6,3433.2,0.905954]
[1736975148332,0.193,3433.6,3433.3,0.0784207]
[1736975148624,0.193,3433.6,3433.2,0.905954]
[1736975148923,0.193,3433.6,3433.3,0.07837296]
[1736975149326,0.193,3433.6,3433.2,0.905954]
[1736975149531,0.193,3433.6,3433.4,0.0783151]
[1736975149824,0.193,3433.6,3433.3,0.07836862]
[1736975150036,0.193,3433.6,3433.4,0.0783151]
[1736975150208,0.193,3433.6,3433.2,0.905954]
[1736975150527,3.9194,3433.6,3433.3,0.07836862]
[1736975150722,0.39194,3433.5,3433.3,0.07836862]
[1736975150923,3.9194,3433.6,3433.2,0.905954]
[1736975151128,3.9194,3433.6,3433.4,0.0783151]
[1736975151325,3.9194,3433.6,3433.3,0.07836862]
[1736975151517,3.9194,3433.6,3433.2,0.905954]
[1736975151716,3.9194,3433.6,3433.4,0.0783151]
[1736975151915,4.31134,3433.6,3433.3,0.07836862]
[1736975152117,4.31134,3433.6,3433.2,0.905954]
[1736975152318,4.31134,3433.6,3433.4,0.0783151]
[1736975152628,4.31134,3433.6,3433.2,0.905954]
[1736975152821,0.58494,3433.6,3433.3,0.07836862]
[1736975153026,0.193,3433.6,3433.2,0.905954]
[1736975153197,0.193,3433.6,3433.3,0.07836862]
[1736975153397,0.193,3433.6,3433.2,0.905954]
[1736975153619,0.193,3433.6,3433.3,0.07839466]
[1736975153827,0.193,3433.6,3433.2,0.905954]
[1736975154100,0.193,3433.6,3433.3,0.07839466]
[1736975154324,0.193,3433.6,3433.2,0.905954]
[1736975154523,0.193,3433.6,3433.4,0.07834114]
[1736975154698,0.584931,3433.6,3433.3,0.07839466]
[1736975154910,0.584931,3433.6,3433.5,0.07828762]
[1736975155095,0.584931,3433.6,3433.4,0.07834114]
[1736975155298,0.584931,3433.6,3433.2,0.905954]
[1736975155499,0.584931,3433.6,3433.5,0.07828762]
[1736975155725,0.584931,3433.6,3433.2,0.905954]
[1736975155898,0.584931,3433.6,3433.5,0.07828762]
[1736975156099,0.584931,3433.6,3433.2,0.905954]
[1736975156424,0.584931,3433.6,3433.3,0.07839466]
[1736975156599,0.584931,3433.6,3433.2,0.905954]
[1736975156801,0.584931,3433.6,3433.3,0.07839466]
[1736975156999,0.584931,3433.6,3433.2,0.905954]
[1736975157199,0.584931,3433.6,3433.3,0.07839466]
[1736975157412,0.584931,3433.6,3433.2,0.905954]
[1736975157619,0.584931,3433.6,3433.3,0.07839466]
[1736975157936,0.584931,3433.6,3433.2,0.905954]
[1736975158431,0.584931,3433.6,3433.3,0.07839466]
[1736975158639,0.584931,3433.6,3433.2,0.905954]
[1736975158839,0.584931,3433.6,3433.3,0.07839466]
[1736975159004,0.584931,3433.6,3433.2,0.905954]
[1736975159206,0.584931,3433.6,3433.3,0.07839466]
[1736975159437,0.584931,3433.6,3433.2,0.905954]
[1736975159615,0.584931,3433.6,3433.3,0.07839466]
[1736975160137,0.584931,3433.6,3433.2,0.905954]
[1736975160526,0.584931,3433.6,3433.3,0.07839466]
[1736975160906,0.584931,3433.6,3433.2,0.905954]
[1736975161236,0.584931,3433.6,3433.3,0.07839466]
[1736975161602,0.584931,3433.6,3433.2,0.905954]
[1736975161803,0.584931,3433.6,3433.3,0.07839466]
[1736975162023,0.584931,3433.6,3433.2,0.905954]
[1736975162213,0.3497241,3433.5,3433.3,0.07839466]
[1736975162417,0.3497241,3433.5,3433.2,0.905954]
[1736975162707,2.91256,3433.4,3433.3,0.07839466]
[1736975162913,2.91264,3433.3,3433.2,0.905954]
[1736975163126,3.61700937,3433.3,3433.2,0.905954]
[1736975163325,3.61700937,3433.3,3433.2,0.98444558]